bitfinex/quotes_BTCUSD_20241001
["timestamp","ask_amount","ask_price","bid_price","bid_amount"]
[1727798531673,0.321006,62695.0,62689.0,0.159517]
[1727798531884,0.159507,62694.0,62689.0,0.159517]
[1727798532113,0.320015,62693.0,62689.0,0.023]
[1727798532373,0.319027,62691.0,62688.0,0.001]
[1727798532652,0.319015,62693.0,62688.0,0.001]
[1727798532653,0.159507,62693.0,62689.0,0.159515]
[1727798532896,0.160508,62693.0,62690.0,0.023]
[1727798533116,0.159506,62694.0,62690.0,0.182515]
[1727798533355,0.001,62693.0,62689.0,0.001]
[1727798533589,0.001,62693.0,62692.0,0.182509]
[1727798533844,0.001,62693.0,62692.0,0.3389668]
[1727798534072,0.001,62693.0,62692.0,0.4155668]
[1727798534295,0.001,62693.0,62692.0,0.5155668]
[1727798534769,0.004646,62693.0,62692.0,0.5155668]
[1727798535250,0.001646,62693.0,62692.0,0.5155668]
[1727798535709,0.001646,62698.0,62692.0,0.5155668]
[1727798535710,0.001646,62698.0,62697.0,0.159497]
[1727798535952,0.001646,62698.0,62697.0,0.4159548]
[1727798538071,0.001646,62698.0,62697.0,0.42805635]
[1727798538297,0.001646,62698.0,62697.0,0.83954001]
[1727798538522,0.23875656,62712.0,62711.0,0.159461]
[1727798538791,0.23875656,62712.0,62711.0,0.3159188]
[1727798539275,0.26375015,62719.0,62718.0,0.159443]
[1727798539276,0.23875656,62719.0,62718.0,0.159443]
[1727798539498,0.23875656,62719.0,62718.0,0.3159008]
[1727798539951,0.318832,62729.0,62721.0,0.159434]
[1727798540182,0.318832,62729.0,62718.0,0.4753428]
[1727798540183,0.1801,62732.0,62718.0,0.4753428]
[1727798540454,0.0769,62733.0,62722.0,0.1564578]
[1727798540675,0.23875656,62728.0,62723.0,0.318862]
[1727798540891,0.159416,62729.0,62725.0,0.159425]
[1727798541152,0.23875656,62735.0,62726.0,0.1564578]
[1727798541372,0.39815256,62737.0,62733.0,0.159404]
[1727798541618,0.23875656,62737.0,62726.0,0.1564578]
[1727798541840,0.23875656,62737.0,62721.0,0.33498366]
[1727798541841,0.23875656,62737.0,62734.0,0.318805]
[1727798542082,0.001646,62738.0,62734.0,0.318805]
[1727798542083,0.001646,62738.0,62737.0,0.159395]
[1727798542315,0.001646,62738.0,62737.0,0.3158528]
[1727798543479,0.001646,62738.0,62737.0,0.3168528]
[1727798543694,0.001646,62738.0,62737.0,0.3158528]
[1727798544159,0.001646,62738.0,62737.0,0.3168528]
[1727798544638,0.001646,62738.0,62737.0,0.3834528]
[1727798545130,0.001646,62738.0,62737.0,0.4204328]
[1727798545371,0.001648,62742.0,62741.0,0.59936866]
[1727798545647,0.001648,62742.0,62741.0,0.8255821]
[1727798545882,0.001648,62751.0,62750.0,0.259362]
[1727798546115,0.001648,62751.0,62750.0,0.4158198]
[1727798547257,0.161008,62751.0,62743.0,0.318758]
[1727798547496,0.65371366,62749.0,62744.0,0.1564578]
[1727798547747,0.001648,62751.0,62744.0,0.1564578]
[1727798547979,0.318728,62750.0,62745.0,0.023]
[1727798548242,0.159365,62749.0,62747.0,0.023]
[1727798548467,0.159365,62749.0,62748.0,0.1564578]
[1727798548683,0.159365,62749.0,62748.0,0.1794578]
[1727798548908,0.001648,62751.0,62742.0,0.1]
[1727798549123,0.33498366,62749.0,62739.0,0.00205089]
[1727798549364,0.001648,62751.0,62741.0,0.1]
[1727798549365,0.159377,62745.0,62741.0,0.1]
[1727798549594,0.318735,62748.0,62741.0,0.1]
[1727798549595,0.001646,62742.0,62741.0,0.1]
[1727798550095,0.001646,62742.0,62741.0,0.2564578]
[1727798550340,0.001646,62742.0,62741.0,0.4388428]
[1727798551579,0.001646,62742.0,62741.0,0.45139832]
[1727798552057,0.001646,62742.0,62741.0,0.52829832]
[1727798552280,0.001646,62742.0,62741.0,0.57161111]
[1727798552520,0.001646,62742.0,62741.0,0.52929832]
[1727798552793,0.001646,62742.0,62741.0,0.52829832]
[1727798553021,0.161028,62742.0,62741.0,0.2574578]
[1727798553264,0.001646,62742.0,62741.0,0.4158428]
[1727798553772,0.161028,62742.0,62741.0,0.001]
[1727798554029,0.318773,62741.0,62735.0,0.1]
[1727798554245,0.159386,62741.0,62736.0,0.2564578]
[1727798554473,0.159389,62740.0,62736.0,0.4158548]
[1727798554700,0.001646,62742.0,62738.0,0.1]
[1727798554926,0.001646,62742.0,62740.0,0.1]
[1727798555176,0.001646,62742.0,62741.0,0.259385]
[1727798555402,0.001646,62742.0,62741.0,0.4158428]
[1727798555894,0.001646,62742.0,62741.0,0.6868428]
[1727798556334,0.001646,62742.0,62741.0,0.6878428]
[1727798556564,0.001646,62742.0,62741.0,0.6818428]
[1727798556769,0.001646,62742.0,62741.0,0.72615559]
[1727798557273,0.001648,62751.0,62741.0,0.72615559]
[1727798557274,0.001648,62751.0,62750.0,0.159362]
[1727798557510,0.001648,62751.0,62750.0,0.259362]
[1727798558233,0.001648,62751.0,62750.0,0.4158198]
[1727798558461,0.001648,62751.0,62750.0,0.75080346]
[1727798558684,0.001648,62751.0,62750.0,0.78278346]
[1727798559117,0.001648,62751.0,62750.0,0.78778346]
[1727798559344,0.001648,62751.0,62750.0,0.79999321]
[1727798559561,0.001648,62751.0,62750.0,0.84806202]
[1727798559797,0.001648,62751.0,62750.0,0.79999321]
[1727798560058,0.001644,62756.0,62750.0,0.79999321]
[1727798560059,0.001644,62756.0,62755.0,0.005]
[1727798560271,0.001644,62756.0,62755.0,0.89249242]
[1727798560740,0.001644,62756.0,62755.0,0.90249242]
[1727798560957,0.001648,62757.0,62756.0,0.306327]
[1727798561185,0.001648,62757.0,62756.0,1.6660928]
[1727798561408,0.001648,62757.0,62756.0,0.6497848]
[1727798562166,0.001648,62757.0,62756.0,0.6397848]
[1727798562832,0.001648,62757.0,62756.0,0.6078048]
[1727798563292,0.001648,62757.0,62756.0,0.3158048]
[1727798564728,0.001648,62757.0,62756.0,0.4208048]
[1727798564977,0.001648,62757.0,62756.0,0.4972048]
[1727798565941,0.001648,62757.0,62756.0,0.4922048]
[1727798566185,0.001648,62757.0,62756.0,0.4158048]
[1727798566424,0.001648,62757.0,62756.0,0.1574578]
[1727798567152,0.001648,62757.0,62756.0,0.3168048]
[1727798567639,0.001648,62757.0,62756.0,0.3158048]
[1727798567883,0.001648,62757.0,62756.0,0.4168048]
[1727798568345,0.001648,62757.0,62756.0,0.4158048]
[1727798568577,0.001648,62757.0,62756.0,0.4168048]
[1727798569349,0.001648,62757.0,62756.0,0.4178048]
[1727798569574,0.160992,62757.0,62756.0,0.002]
[1727798569791,0.237992,62757.0,62756.0,0.002]
[1727798570812,0.159356,62753.0,62748.0,0.159366]
[1727798571033,0.078648,62757.0,62756.0,0.001]
[1727798571251,0.237992,62757.0,62756.0,0.001]
[1727798571460,0.079648,62757.0,62756.0,0.001]
[1727798571687,0.238992,62757.0,62756.0,0.001]
[1727798571909,0.237992,62757.0,62756.0,0.001]
[1727798572394,0.237992,62757.0,62756.0,0.002]
[1727798572395,0.239992,62757.0,62756.0,0.002]
[1727798572905,0.080648,62757.0,62756.0,0.002]
[1727798573126,0.080648,62757.0,62756.0,0.4178048]
[1727798573127,0.003648,62757.0,62756.0,0.4178048]
[1727798573825,0.003648,62757.0,62756.0,0.4194488]
[1727798574537,0.003648,62757.0,62756.0,0.4184488]
[1727798574761,0.001648,62757.0,62756.0,0.4184488]
[1727798574990,0.003648,62757.0,62756.0,0.4184488]
[1727798575699,0.003648,62757.0,62756.0,0.4234488]
[1727798576661,0.001648,62757.0,62756.0,0.4234488]
[1727798577121,0.001648,62757.0,62756.0,0.4554288]
[1727798577345,0.001648,62757.0,62756.0,0.4174488]
[1727798577807,0.001648,62757.0,62756.0,0.4184488]
[1727798578270,0.003648,62757.0,62756.0,0.4174488]
[1727798578751,0.001648,62757.0,62756.0,0.4184488]
[1727798578974,0.001648,62757.0,62756.0,0.4194488]
[1727798579212,0.001648,62757.0,62756.0,0.4184488]
[1727798579484,0.001648,62757.0,62756.0,0.2581018]
[1727798579712,0.003648,62757.0,62756.0,0.4174488]
[1727798580921,0.003648,62757.0,62756.0,0.4184488]
[1727798581164,0.003648,62757.0,62756.0,0.4414488]
[1727798581421,0.001648,62757.0,62756.0,0.4414488]
[1727798581653,0.001648,62757.0,62756.0,0.4454488]
[1727798581896,0.001648,62757.0,62756.0,0.7028488]
[1727798582204,0.003648,62757.0,62756.0,0.7058488]
[1727798582448,0.001648,62757.0,62756.0,0.8066088]
[1727798582672,0.23875656,62791.0,62768.0,0.04]
[1727798582901,0.23875656,62791.0,62768.0,0.90761576]
[1727798583153,0.23875656,62791.0,62771.0,0.174309]
[1727798583364,0.0009951,62781.0,62771.0,0.4857468]
[1727798584654,0.0009951,62781.0,62771.0,0.4877468]
[1727798584895,0.0009951,62781.0,62780.0,0.187286]
[1727798585146,0.23875656,62784.0,62783.0,0.159278]
[1727798585377,0.23875656,62784.0,62783.0,0.4387358]
[1727798585599,0.23875656,62791.0,62790.0,0.259261]
[1727798585837,0.23875656,62791.0,62790.0,0.4387188]
[1727798586054,0.001646,62797.0,62796.0,0.159245]
[1727798586282,0.001646,62797.0,62795.0,0.159248]
[1727798586508,0.001646,62797.0,62790.0,0.5979778]
[1727798586509,0.15925,62795.0,62790.0,0.1]
[1727798586750,0.318493,62796.0,62790.0,0.259259]
[1727798587013,0.16089,62797.0,62793.0,0.159251]
[1727798587250,0.16089,62797.0,62790.0,0.1]
[1727798587251,0.159249,62795.0,62790.0,0.259258]
[1727798587899,0.160891,62797.0,62790.0,0.1]
[1727798588125,0.003646,62797.0,62796.0,0.001]
[1727798588363,0.162889,62797.0,62796.0,0.001]
[1727798588626,0.003646,62797.0,62796.0,0.160245]
[1727798588873,0.001646,62797.0,62796.0,0.159245]
[1727798589523,0.001646,62797.0,62794.0,0.023]
[1727798589768,0.001646,62797.0,62794.0,0.1794578]
[1727798590018,0.001646,62797.0,62785.0,0.318545]
[1727798590019,0.159258,62791.0,62788.0,0.1]
[1727798590275,0.159258,62791.0,62788.0,0.2564578]
[1727798590500,0.159258,62791.0,62782.0,0.318557]
[1727798590501,0.159283,62782.0,62780.0,0.1]
[1727798590719,0.318543,62786.0,62777.0,0.23875656]
[1727798590720,0.159287,62780.0,62777.0,0.23875656]
[1727798590941,0.159287,62780.0,62774.0,0.0121535]
[1727798590942,0.159292,62778.0,62774.0,0.1714545]
[1727798591176,0.159292,62778.0,62767.0,0.159318]
[1727798591177,0.159307,62772.0,62767.0,0.159318]
[1727798591453,0.0778,62778.0,62764.0,1.0]
[1727798591454,0.33381336,62774.0,62764.0,1.0]
[1727798591676,0.159315,62769.0,62764.0,1.3157828]
[1727798591953,0.159318,62768.0,62764.0,1.1564578]
[1727798592170,0.1767,62773.0,62764.0,1.1564578]
[1727798592171,0.15931,62771.0,62764.0,1.1564578]
[1727798592403,0.1767,62773.0,62765.0,0.159322]
[1727798592404,0.159311,62770.0,62765.0,0.159322]
[1727798592904,0.159312,62770.0,62765.0,0.159322]
[1727798593153,0.1767,62773.0,62764.0,1.1574578]
[1727798593154,0.23875656,62771.0,62768.0,0.023]
[1727798593367,0.1767,62773.0,62768.0,0.1794578]
[1727798593608,0.41545656,62773.0,62768.0,0.1794578]
[1727798593845,0.159307,62772.0,62768.0,0.3387728]
[1727798594067,0.1767,62773.0,62768.0,0.4980898]
[1727798594283,0.1767,62773.0,62769.0,0.318626]
[1727798594542,0.3973741,62778.0,62771.0,0.159309]
[1727798594543,0.159299,62775.0,62771.0,0.159309]
[1727798594795,0.31859,62777.0,62772.0,0.159304]
[1727798594796,0.318588,62777.0,62772.0,0.159304]
[1727798595059,0.0787911,62778.0,62772.0,0.1564578]
[1727798595307,0.0778,62778.0,62767.0,0.1]
[1727798595548,0.318612,62773.0,62767.0,0.2564578]
[1727798595813,0.0778,62778.0,62767.0,0.4157758]
[1727798595814,0.318603,62774.0,62767.0,0.4157758]
[1727798596005,0.159311,62770.0,62767.0,0.4157758]
[1727798596241,0.159309,62772.0,62768.0,0.159315]
[1727798596469,0.159309,62772.0,62761.0,0.318666]
[1727798596470,0.24875656,62773.0,62755.0,0.01227625]
[1727798596700,0.159324,62765.0,62752.0,0.159356]
[1727798596934,0.159324,62765.0,62748.0,0.23875656]
[1727798597160,0.159324,62765.0,62749.0,0.159363]
[1727798597382,0.159324,62765.0,62750.0,0.15936]
[1727798597622,0.159324,62765.0,62748.0,0.23875656]
[1727798598091,0.159324,62765.0,62750.0,0.159361]
[1727798598310,0.18429617,62765.0,62751.0,0.159359]
[1727798598547,0.18429617,62765.0,62749.0,0.159364]
[1727798598757,0.18429617,62765.0,62748.0,0.23875656]
[1727798598976,0.18429617,62765.0,62749.0,0.159364]
[1727798599197,0.18429617,62765.0,62748.0,0.23875656]
[1727798599198,0.59365397,62765.0,62748.0,0.23875656]
[1727798599417,0.59165397,62765.0,62748.0,0.23875656]
[1727798599692,0.60465397,62765.0,62764.0,1.002]
[1727798599920,0.5796818,62765.0,62764.0,1.002]
[1727798600165,0.423224,62765.0,62764.0,1.002]
[1727798600377,0.423224,62765.0,62764.0,1.001]
[1727798600597,0.423224,62765.0,62764.0,0.001]
[1727798601064,0.013,62765.0,62764.0,0.001]
[1727798601306,0.013,62765.0,62764.0,0.161327]
[1727798601553,0.159312,62770.0,62764.0,0.161327]
[1727798601554,0.000822,62771.0,62770.0,0.159311]
[1727798601778,0.23957856,62771.0,62770.0,0.159311]
[1727798602001,0.000822,62771.0,62767.0,0.1]
[1727798602250,0.000822,62771.0,62770.0,0.159311]
[1727798602490,0.000822,62771.0,62770.0,0.4157688]
[1727798603838,0.000822,62771.0,62770.0,0.4387688]
[1727798604979,0.000822,62771.0,62770.0,0.4397688]
[1727798605633,0.010822,62771.0,62770.0,0.4407688]
[1727798606495,0.010822,62771.0,62770.0,0.4397688]
[1727798606496,0.000822,62771.0,62770.0,0.4397688]
[1727798606937,0.005822,62771.0,62770.0,0.4397688]
[1727798607148,0.005822,62771.0,62770.0,0.4387688]
[1727798607412,0.005822,62771.0,62770.0,0.4397688]
[1727798608571,0.005822,62771.0,62770.0,0.49099143]
[1727798608790,0.005822,62771.0,62770.0,0.4447688]
[1727798609446,0.000822,62771.0,62770.0,0.4447688]
[1727798609683,0.000822,62771.0,62770.0,0.6310688]
[1727798609926,0.000822,62771.0,62770.0,1.1548828]
[1727798610171,0.23875656,62780.0,62779.0,0.03698]
[1727798610384,0.23875656,62780.0,62779.0,0.4757258]
[1727798610597,0.001646,62797.0,62785.0,0.007]
[1727798610809,0.001646,62797.0,62787.0,0.282268]
[1727798611032,0.001646,62797.0,62787.0,0.4387258]
[1727798611278,0.001646,62797.0,62794.0,0.25925]
[1727798611493,0.001646,62797.0,62794.0,0.4157078]
[1727798611711,0.001646,62797.0,62796.0,0.159245]
[1727798611925,0.001646,62797.0,62796.0,0.3157028]
[1727798613227,0.001646,62797.0,62796.0,0.3167028]
[1727798613228,0.008646,62797.0,62796.0,0.3167028]
[1727798613468,0.008646,62797.0,62796.0,0.001]
[1727798613695,0.167889,62797.0,62796.0,0.001]
[1727798614134,0.167889,62797.0,62796.0,0.015]
[1727798614605,0.160889,62797.0,62796.0,0.014]
[1727798615133,0.493377,62797.0,62796.0,0.001]
[1727798615374,0.50972091,62797.0,62796.0,0.001]
[1727798615634,0.17723491,62797.0,62793.0,0.159252]
[1727798615834,0.159248,62795.0,62792.0,0.259255]
[1727798616072,0.01634391,62794.0,62792.0,0.1]
[1727798616282,0.334135,62797.0,62792.0,0.1]
[1727798616283,0.159253,62793.0,62792.0,0.1]
[1727798616538,0.159276,62784.0,62780.0,0.159285]
[1727798616765,0.159283,62781.0,62780.0,0.23875656]
[1727798616991,0.33381336,62789.0,62772.0,0.23875656]
[1727798617225,0.159287,62780.0,62775.0,0.159298]
[1727798617448,0.318561,62783.0,62773.0,0.4750648]
[1727798617671,0.318561,62783.0,62775.0,0.159296]
[1727798617672,0.159287,62780.0,62775.0,0.159296]
[1727798617899,0.02496327,62784.0,62783.0,0.159278]
[1727798618141,0.04139553,62784.0,62783.0,0.159278]
[1727798618385,0.04139553,62784.0,62783.0,0.3157358]
[1727798618609,0.159251,62794.0,62790.0,0.159258]
[1727798618843,0.870234,62797.0,62790.0,0.159258]
[1727798618844,0.23875656,62791.0,62790.0,0.159261]
[1727798619108,0.01645425,62791.0,62790.0,0.159261]
[1727798619346,0.02496212,62796.0,62793.0,0.159252]
[1727798619576,0.01640683,62795.0,62793.0,0.159252]
[1727798619825,0.02496212,62796.0,62788.0,0.31853]
[1727798619826,0.34345512,62796.0,62788.0,0.31853]
[1727798620053,0.34345512,62796.0,62784.0,0.1]
[1727798620054,0.02496212,62796.0,62794.0,0.15925]
[1727798620304,0.02496212,62796.0,62795.0,0.159248]
[1727798620523,0.001646,62797.0,62796.0,0.159245]
[1727798620771,0.001646,62797.0,62796.0,0.3157028]
[1727798622840,0.004646,62797.0,62796.0,0.3157028]
[1727798623076,0.004646,62797.0,62796.0,0.4157028]
[1727798623535,0.004646,62797.0,62796.0,0.4297028]
[1727798623750,0.004646,62797.0,62796.0,0.4157028]
[1727798624202,0.004646,62797.0,62796.0,0.4347028]
[1727798624438,0.004646,62797.0,62796.0,0.4666828]
[1727798624901,0.004646,62797.0,62796.0,0.4347028]
[1727798625125,0.001646,62797.0,62796.0,0.4347028]
[1727798625382,0.001646,62797.0,62796.0,0.4686828]
[1727798625606,0.004646,62797.0,62796.0,0.4546828]
[1727798626066,0.004646,62797.0,62796.0,0.4646828]
[1727798626067,0.001646,62797.0,62796.0,0.4646828]
[1727798626538,0.002646,62797.0,62796.0,0.4656828]
[1727798627016,0.002646,62797.0,62796.0,0.4796828]
[1727798627479,0.002646,62797.0,62796.0,0.8762348]
[1727798627705,0.002646,62797.0,62796.0,0.8622348]
[1727798628440,0.001646,62797.0,62796.0,0.8752348]
[1727798629093,0.002646,62797.0,62796.0,0.8762348]
[1727798630436,0.002646,62797.0,62796.0,1.0503348]
[1727798630947,0.0009803,62809.0,62808.0,0.59802836]
[1727798631205,0.0009803,62809.0,62808.0,0.76448616]
[1727798631428,0.0004,62819.0,62811.0,0.159207]
[1727798631649,0.0004,62819.0,62811.0,0.4156648]
[1727798631880,0.0004,62819.0,62813.0,0.259202]
[1727798632104,0.0004,62819.0,62813.0,0.74947316]
[1727798632573,0.0004,62819.0,62813.0,0.78645316]
[1727798632792,0.0004,62819.0,62813.0,1.45194716]
[1727798633019,0.0004,62819.0,62813.0,1.43801416]
[1727798633726,0.0004,62819.0,62813.0,1.34297516]
[1727798633958,0.23875656,62824.0,62814.0,0.1]
[1727798634180,0.23875656,62824.0,62823.0,0.78642816]
[1727798634708,0.17,62830.0,62827.0,0.293147]
[1727798634963,0.17,62830.0,62827.0,0.4526048]
[1727798635200,0.17,62830.0,62827.0,0.5300048]
[1727798635920,0.17,62830.0,62827.0,0.4526048]
[1727798636139,0.17,62830.0,62827.0,0.46708106]
[1727798636834,0.17,62830.0,62827.0,0.46508106]
[1727798637772,0.17,62830.0,62827.0,0.47108106]
[1727798638001,0.17,62830.0,62827.0,0.48408106]
[1727798638260,0.17,62830.0,62827.0,0.47808106]
[1727798638719,0.17,62830.0,62827.0,0.49108106]
[1727798639643,0.001821,62828.0,62827.0,0.51508106]
[1727798640087,0.000821,62828.0,62827.0,0.83609506]
[1727798640586,1e-06,62828.0,62827.0,0.84909506]
[1727798640884,0.000821,62834.0,62833.0,0.017]
[1727798641123,0.0009963,62836.0,62835.0,0.64193936]
[1727798641124,9.8e-07,62836.0,62835.0,0.64193936]
[1727798641369,0.23875656,62857.0,62838.0,0.208119]
[1727798641601,0.23875656,62857.0,62839.0,0.208116]
[1727798641825,0.23875656,62857.0,62839.0,0.6291328]
[1727798642055,0.23875656,62857.0,62839.0,1.1195308]
[1727798642279,0.23875656,62857.0,62839.0,0.4625738]
[1727798642518,0.23875656,62857.0,62839.0,0.8459348]
[1727798642769,0.23875656,62857.0,62839.0,0.8479348]
[1727798643010,0.23875656,62857.0,62851.0,0.005]
[1727798643237,0.23875656,62857.0,62856.0,0.291073]
[1727798643447,0.23875656,62857.0,62856.0,0.4475308]
[1727798643684,0.0751,62870.0,62858.0,0.259088]
[1727798643913,0.0751,62870.0,62858.0,0.4155458]
[1727798644142,0.0789,62873.0,62858.0,0.67730236]
[1727798644386,0.0789,62873.0,62872.0,0.314033]
[1727798644387,0.23875656,62873.0,62872.0,0.314033]
[1727798644627,0.23875656,62873.0,62872.0,0.4704908]
[1727798644859,0.0004,62879.0,62878.0,0.259038]
[1727798645110,0.0004,62879.0,62878.0,0.4154958]
[1727798645599,0.0004,62879.0,62878.0,0.3880958]
[1727798646194,0.0004,62879.0,62878.0,0.3910958]
[1727798646631,0.19536012,62891.0,62885.0,0.159019]
[1727798646831,0.19536012,62891.0,62883.0,0.318048]
[1727798646832,0.15901,62889.0,62884.0,0.159021]
[1727798647040,0.03635512,62891.0,62882.0,0.1]
[1727798647255,0.318016,62890.0,62882.0,0.1]
[1727798647470,0.159014,62888.0,62884.0,0.159022]
[1727798647685,0.04835512,62891.0,62885.0,0.001]
[1727798647851,0.012,62891.0,62885.0,0.001]
[1727798648052,0.159012,62889.0,62885.0,0.001]
[1727798648274,0.159011,62889.0,62885.0,0.001]
[1727798648508,0.318015,62890.0,62885.0,0.001]
[1727798648727,0.012,62891.0,62885.0,0.001]
[1727798648728,0.159014,62888.0,62885.0,0.001]
[1727798648964,0.159014,62888.0,62878.0,0.001]
[1727798648965,0.33381336,62886.0,62878.0,0.001]
[1727798649179,0.33381336,62886.0,62879.0,0.23875656]
[1727798649389,0.33381336,62886.0,62873.0,0.1]
[1727798649390,0.477063,62885.0,62884.0,0.001]
[1727798649607,0.477063,62885.0,62864.0,0.23875656]
[1727798649608,0.4051578,62885.0,62864.0,0.23875656]
[1727798649810,0.33381336,62879.0,62869.0,0.15906]
[1727798650025,0.15905,62873.0,62866.0,0.318133]
[1727798650258,0.33381336,62874.0,62864.0,0.23875656]
[1727798650492,0.23875656,62878.0,62862.0,0.23875656]
[1727798650493,0.318139,62866.0,62862.0,0.23875656]
[1727798650707,0.318164,62861.0,62849.0,0.01247785]
[1727798650908,0.318164,62861.0,62851.0,0.318211]
[1727798650909,0.08,62861.0,62851.0,0.318211]
[1727798651140,0.08,62861.0,62849.0,0.01247785]
[1727798651349,0.239081,62861.0,62856.0,0.159093]
[1727798651562,0.239081,62861.0,62860.0,0.159083]
[1727798651563,0.08,62861.0,62860.0,0.159083]
[1727798652007,0.23875656,62870.0,62860.0,0.1564578]
[1727798652216,0.23875656,62870.0,62861.0,0.1564578]
[1727798652442,0.23875656,62870.0,62864.0,0.001]
[1727798652666,0.23875656,62870.0,62868.0,0.159062]
[1727798652922,0.23875656,62870.0,62862.0,0.1]
[1727798653158,0.012,62870.0,62863.0,0.1]
[1727798653373,0.012,62870.0,62868.0,0.159062]
[1727798653688,0.012,62870.0,62865.0,0.31814]
[1727798653905,0.33381336,62869.0,62860.0,0.1]
[1727798654131,0.159071,62865.0,62860.0,0.49783856]
[1727798654368,0.004,62870.0,62862.0,0.023]
[1727798654598,0.004,62870.0,62869.0,0.15906]
[1727798654831,0.004,62870.0,62867.0,0.159065]
[1727798655063,0.004,62870.0,62853.0,0.03198]
[1727798655320,0.1839815,62873.0,62868.0,0.159062]
[1727798655564,0.159057,62871.0,62866.0,0.159067]
[1727798655790,0.009,62870.0,62867.0,0.159064]
[1727798656064,0.159068,62866.0,62865.0,0.001]
[1727798656293,0.65193436,62870.0,62861.0,0.318162]
[1727798656511,0.159074,62864.0,62859.0,0.49784056]
[1727798656725,0.15907,62866.0,62861.0,0.1]
[1727798656938,0.159072,62865.0,62861.0,0.259081]
[1727798657397,0.16207,62866.0,62861.0,0.25908]
[1727798657614,0.65193436,62870.0,62861.0,0.1]
[1727798657839,0.159074,62864.0,62859.0,0.159084]
[1727798658101,0.003,62866.0,62856.0,0.318187]
[1727798658337,0.01636707,62865.0,62861.0,0.1]
[1727798658550,0.01636707,62865.0,62862.0,0.159076]
[1727798658769,0.01636707,62865.0,62862.0,0.318154]
[1727798658980,0.01636707,62865.0,62864.0,0.159073]
[1727798659684,0.02329818,62865.0,62864.0,0.159073]
[1727798660177,0.02329818,62865.0,62848.0,0.159113]
[1727798660178,0.159103,62853.0,62848.0,0.159113]
[1727798660417,0.159103,62853.0,62844.0,0.318246]
[1727798660418,0.01629818,62852.0,62850.0,0.23875656]
[1727798660641,0.01629818,62851.0,62850.0,0.39786456]
[1727798660855,0.01629818,62851.0,62847.0,0.318231]
[1727798660856,0.01629818,62855.0,62847.0,0.318231]
[1727798661073,0.23875656,62854.0,62843.0,0.23875656]
[1727798661363,0.159106,62851.0,62845.0,0.15912]
[1727798661582,0.01630454,62850.0,62844.0,0.1]
[1727798661797,0.01630454,62849.0,62844.0,0.418246]
[1727798662081,0.23875656,62856.0,62850.0,0.1]
[1727798662358,0.318161,62862.0,62852.0,0.318205]
[1727798662608,0.01637424,62861.0,62857.0,0.159089]
[1727798662858,0.01637424,62860.0,62858.0,0.1]
[1727798663110,0.0782,62865.0,62858.0,0.1]
[1727798663111,0.0922,62865.0,62858.0,0.2564578]
[1727798663370,0.159889,62866.0,62862.0,0.159078]
[1727798663609,0.000821,62866.0,62863.0,0.159074]
[1727798663857,0.000821,62866.0,62863.0,0.159076]
[1727798664100,0.000821,62866.0,62861.0,0.1]
[1727798664356,0.000821,62866.0,62863.0,0.159075]
[1727798664609,0.000821,62866.0,62860.0,0.1]
[1727798664856,0.000821,62866.0,62859.0,0.1564578]
[1727798664857,0.159889,62866.0,62862.0,0.259078]
[1727798665087,0.01635042,62865.0,62863.0,0.159075]
[1727798665311,0.011,62865.0,62864.0,0.159073]
[1727798665532,0.011,62865.0,62864.0,0.4155308]
[1727798665533,0.02735475,62865.0,62864.0,0.4155308]
[1727798666034,0.007821,62866.0,62864.0,0.4155308]
[1727798666035,0.007821,62866.0,62865.0,0.259071]
[1727798666339,0.085221,62866.0,62862.0,0.159076]
[1727798666593,0.161071,62865.0,62863.0,0.1]
[1727798666842,0.159071,62865.0,62863.0,0.1]
[1727798667093,0.17542491,62864.0,62863.0,0.1]
[1727798667329,0.17542491,62864.0,62860.0,0.1]
[1727798667330,0.159082,62861.0,62860.0,0.1]
[1727798667577,0.17543391,62861.0,62858.0,0.1]
[1727798667803,0.01635191,62860.0,62858.0,0.1]
[1727798668039,0.318151,62864.0,62860.0,0.1]
[1727798668281,0.01636463,62863.0,62862.0,0.1]
[1727798668764,0.17544063,62863.0,62862.0,0.1]
[1727798669028,0.01636463,62863.0,62858.0,0.159087]
[1727798669270,0.159076,62863.0,62859.0,0.1]
[1727798669505,0.000821,62866.0,62859.0,0.2564578]
[1727798669767,0.025,62863.0,62862.0,0.160078]
[1727798670015,0.159079,62862.0,62859.0,0.2564578]
[1727798670262,0.01640367,62861.0,62859.0,0.1]
[1727798670506,0.006,62863.0,62852.0,0.159103]
[1727798670507,0.159094,62856.0,62852.0,0.159103]
[1727798670747,0.159098,62854.0,62853.0,0.1]
[1727798670985,0.17550167,62854.0,62853.0,0.1]
[1727798671225,0.01640367,62854.0,62853.0,0.1]
[1727798671735,0.17550167,62854.0,62851.0,0.1]
[1727798671992,0.318192,62856.0,62853.0,0.1]
[1727798672232,0.0783,62857.0,62854.0,0.159098]
[1727798672474,0.0783,62857.0,62853.0,0.1]
[1727798672475,0.0783,62857.0,62853.0,0.418202]
[1727798672746,0.324163,62861.0,62855.0,0.1]
[1727798672747,0.159087,62859.0,62855.0,0.1]
[1727798673211,0.318171,62860.0,62855.0,0.1]
[1727798673448,0.159088,62859.0,62857.0,0.00164]
[1727798673687,0.159088,62858.0,62857.0,0.00164]
[1727798675850,0.167088,62858.0,62857.0,0.00264]
[1727798676093,0.174088,62858.0,62857.0,0.00264]
[1727798677914,0.7987248,62858.0,62857.0,0.00264]
[1727798678159,1.0382826,62858.0,62857.0,0.00264]
[1727798678415,0.159124,62844.0,62839.0,0.001642]
[1727798678665,0.73253736,62844.0,62839.0,0.001642]
[1727798678932,0.159134,62840.0,62839.0,0.001642]
[1727798679170,0.1755353,62840.0,62839.0,0.001642]
[1727798680842,0.1755353,62840.0,62839.0,0.002642]
[1727798680843,0.1845353,62840.0,62839.0,0.002642]